{"text_format":"3","workbook":"xlsx","n_sheets":2,"sheets":["LCV İzleyici","LCV Özeti"],"not_rendered":{"charts":2,"defined_names":22},"read":"whole","date_system":"1900"}

{"sheet":"LCV İzleyici","index":0,"n_rows":15,"n_cols":15,"rows_kept":15,"merged":[[0,3,0,4],[0,5,0,7],[1,3,1,14]]}
[{"$nulls":5},"LCV ÖZETİ"]
[null,"DÜĞÜN TARİHİ",null,"düğün daveti izleyici"]
[null,{"$f":"TODAY()+283","v":"2019-06-23"},null,"KONUK ADI","GÖNDERİLDİ Mİ?","LCV","KİŞİ SAYISI","KONUĞU","İLİŞKİ","ADRES","İLÇE","İL","POSTA KODU","TELEFON","İLETİŞİM E-POSTASI"]
[null,"KALAN GÜN",null,"Ad 1","Evet","Evet",1,"Müstakbel Eş 1","Kardeş","Adres","İlçe","İl","Posta Kodu","Telefon","birisi@example.com"]
[null,{"$f":"KalanGün","v":283},null,"Ad 2","Evet","Hayır",3,"Müstakbel Eş 1","Arkadaş","Adres","İlçe","İl","Posta Kodu","Telefon","birisi@example.com"]
[null,"KATILANLAR",null,"Ad 3","Evet","Evet",1,"Diğer","Arkadaş","Adres","İlçe","İl","Posta Kodu","Telefon","birisi@example.com"]
[null,{"$f":"ToplamKatılan","v":12},null,"Ad 4","Evet","Hayır",2,"Müstakbel Eş 2","Arkadaş","Adres","İlçe","İl","Posta Kodu","Telefon","birisi@example.com"]
[null,"KATILMAYANLAR",null,"Ad 5","Evet","Evet",2,"Müstakbel Eş 2","Arkadaş","Adres","İlçe","İl","Posta Kodu","Telefon","birisi@example.com"]
[null,{"$f":"ToplamKatılmayan","v":6},null,"Ad 6","Evet","Belirsiz",null,"Diğer","Arkadaş","Adres","İlçe","İl","Posta Kodu","Telefon","birisi@example.com"]
[null,"BEKLEYEN",null,"Ad 7","Evet","Evet",2,"Müstakbel Eş 2","Arkadaş","Adres","İlçe","İl","Posta Kodu","Telefon","birisi@example.com"]
[null,{"$f":"BekleyenLCV","v":1},null,"Ad 8","Evet","Hayır",1,"Diğer","Arkadaş","Adres","İlçe","İl","Posta Kodu","Telefon","birisi@example.com"]
[{"$nulls":3},"Ad 9","Evet","Evet",4,"Müstakbel Eş 1","Arkadaş","Adres","İlçe","İl","Posta Kodu","Telefon","birisi@example.com"]
[{"$nulls":3},"Ad 10","Evet","Evet",2,"Müstakbel Eş 1","Arkadaş","Adres","İlçe","İl","Posta Kodu","Telefon","birisi@example.com"]
[{"$nulls":3},"Ad 11","Evet",null,null,"Müstakbel Eş 2","Kardeş","Adres","İlçe","İl","Posta Kodu","Telefon","birisi@example.com"]
[{"$nulls":3},"TOPLAM:",{"$f":"COUNTIF('LCV İzleyici'!$E$4:$E$14,\"Evet\")","v":11},{"$f":"COUNTA('LCV İzleyici'!$F$4:$F$14)","v":10},{"$f":"SUBTOTAL(109,tblDavetler[KİŞİ SAYISI])","v":18}]

{"sheet":"LCV Özeti","index":1,"n_rows":11,"n_cols":15,"rows_kept":11,"merged":[[0,3,0,4],[0,5,0,8],[1,3,1,11],[2,3,6,3],[2,4,6,4],[7,3,11,3],[7,4,11,4]]}
[{"$nulls":3},"LCV İZLEYİCİ"]
[null,"DÜĞÜN TARİHİ",null,"lcv özeti",{"$nulls":10},"notlar"]
[null,{"$f":"DüğünTarihi","v":"2019-06-23"},null,"EVET","LCV’yi evet olarak yanıtlayan Konuk türlerini gösteren kümelenmiş çubuk grafik bu hücrededir."]
[null,"KALAN GÜN",{"$nulls":3},"DİĞER",{"$f":"IFERROR(SUMIFS(tblDavetler[KİŞİ SAYISI],tblDavetler[KONUĞU],\"=Diğer\",tblDavetler[LCV],\"Evet\"),0)","v":1},{"$f":"tblDavetler[[#Totals],[GÖNDERİLDİ Mİ?]]","v":11}]
[null,{"$f":"KalanGün","v":283},{"$nulls":3},"MÜSTAKBEL EŞ 2",{"$f":"IFERROR(SUMIFS(tblDavetler[KİŞİ SAYISI],tblDavetler[KONUĞU],\"=Müstakbel Eş 2\",tblDavetler[LCV],\"Evet\"),0)","v":4},{"$f":"tblDavetler[[#Totals],[GÖNDERİLDİ Mİ?]]","v":11}]
[null,"KATILANLAR",{"$nulls":3},"MÜSTAKBEL EŞ 1",{"$f":"IFERROR(SUMIFS(tblDavetler[KİŞİ SAYISI],tblDavetler[KONUĞU],\"=Müstakbel Eş 1\",tblDavetler[LCV],\"Evet\"),0)","v":7},{"$f":"tblDavetler[[#Totals],[GÖNDERİLDİ Mİ?]]","v":11}]
[null,{"$f":"ToplamKatılan","v":12}]
[null,"KATILMAYANLAR",null,"HAYIR","LCV’yi hayır olarak yanıtlayan Konuk türlerini gösteren kümelenmiş çubuk grafik bu hücrededir."]
[null,{"$f":"ToplamKatılmayan","v":6},{"$nulls":3},"DİĞER",{"$f":"IFERROR(SUMIFS(tblDavetler[KİŞİ SAYISI],tblDavetler[KONUĞU],\"=Diğer\",tblDavetler[LCV],\"Hayır\"),0)","v":1},{"$f":"tblDavetler[[#Totals],[GÖNDERİLDİ Mİ?]]","v":11}]
[null,"BEKLEYEN",{"$nulls":3},"MÜSTAKBEL EŞ 2",{"$f":"IFERROR(SUMIFS(tblDavetler[KİŞİ SAYISI],tblDavetler[KONUĞU],\"=Müstakbel Eş 2\",tblDavetler[LCV],\"Hayır\"),0)","v":2},{"$f":"tblDavetler[[#Totals],[GÖNDERİLDİ Mİ?]]","v":11}]
[null,{"$f":"BekleyenLCV","v":1},{"$nulls":3},"MÜSTAKBEL EŞ 1",{"$f":"IFERROR(SUMIFS(tblDavetler[KİŞİ SAYISI],tblDavetler[KONUĞU],\"=Müstakbel Eş 1\",tblDavetler[LCV],\"Hayır\"),0)","v":3},{"$f":"tblDavetler[[#Totals],[GÖNDERİLDİ Mİ?]]","v":11}]